bitfinex-derivatives/quotes_BTCF0:USTF0_20250429
["timestamp","ask_amount","ask_price","bid_price","bid_amount"]
[1745955925845,0.209895,95260.0,95259.0,0.6231405]
[1745955926246,0.209895,95260.0,95259.0,0.7431405]
[1745955926446,0.274995,95260.0,95259.0,0.7431405]
[1745955926651,0.275995,95260.0,95259.0,0.7431405]
[1745955927843,0.276995,95260.0,95259.0,0.7431405]
[1745955928238,0.244995,95260.0,95259.0,0.7431405]
[1745955929043,0.244995,95260.0,95259.0,0.6906716]
[1745955934455,0.276995,95260.0,95259.0,0.6906716]
[1745955941760,0.276995,95260.0,95259.0,0.3298716]
[1745955942056,0.276995,95260.0,95259.0,0.6906716]
[1745955944056,0.276995,95260.0,95259.0,0.3298716]
[1745955944253,0.276995,95260.0,95259.0,0.6906716]
[1745955944754,0.276995,95260.0,95259.0,0.3298716]
[1745955944952,0.276995,95260.0,95259.0,0.6906716]
[1745955948369,0.276995,95260.0,95259.0,0.4808]
[1745955948566,0.276995,95260.0,95259.0,0.6906716]
[1745955951464,0.2769782,95260.0,95259.0,0.6906716]
[1745955951865,0.2769782,95260.0,95259.0,0.7213716]
[1745955952058,0.0351,95260.0,95259.0,0.7213716]
[1745955952265,0.002,95260.0,95259.0,0.7213716]
[1745955953269,0.0336,95260.0,95259.0,0.7213716]
[1745955953658,0.2434782,95260.0,95259.0,0.7213716]
[1745955954971,0.0336,95260.0,95259.0,0.7213716]
[1745955955360,0.2434782,95260.0,95259.0,0.7213716]
[1745955956370,0.0336,95260.0,95259.0,0.7213716]
[1745955957554,0.0524653,95268.0,95262.0,0.0524682]
[1745955957762,0.031,95268.0,95267.0,0.5706606]
[1745955957969,0.2622969,95283.0,95282.0,0.3147362]
[1745955958167,0.2427264,95284.0,95283.0,0.2098275]
[1745955958463,0.0329,95284.0,95283.0,0.2420275]
[1745955958668,0.001,95286.0,95285.0,0.2098231]
[1745955959060,0.001,95286.0,95285.0,0.3298231]
[1745955959667,0.2108209,95286.0,95285.0,0.3298231]
[1745955960665,0.2108209,95286.0,95285.0,0.3936231]
[1745955961173,0.2740209,95286.0,95285.0,0.3936231]
[1745955961362,0.2740209,95286.0,95285.0,0.3966231]
[1745955962363,0.2424209,95286.0,95285.0,0.3966231]
[1745955963370,0.0326,95286.0,95285.0,0.3966231]
[1745955964073,0.2424209,95286.0,95285.0,0.3966231]
[1745955965971,0.0326,95286.0,95285.0,0.3966231]
[1745955967172,0.2424209,95286.0,95285.0,0.3966231]
[1745955968467,0.0326,95286.0,95285.0,0.3966231]
[1745955968670,0.2424209,95286.0,95285.0,0.3966231]
[1745955969668,0.0326,95286.0,95285.0,0.3966231]
[1745955969871,0.2424209,95286.0,95285.0,0.3966231]
[1745955972276,0.0326,95286.0,95285.0,0.3966231]
[1745955973181,0.0326,95286.0,95285.0,0.3963431]
[1745955973580,0.0015,95290.0,95289.0,0.2098143]
[1745955973786,0.0015,95290.0,95289.0,0.5706143]
[1745955974288,0.0015,95290.0,95289.0,0.6906143]
[1745955974795,0.0015,95290.0,95289.0,0.6916143]
[1745955975592,0.2622354,95305.0,95304.0,0.2097791]
[1745955975790,0.2923354,95305.0,95304.0,0.2097791]
[1745955975988,0.2923354,95305.0,95304.0,0.21763304]
[1745955976190,0.2923354,95305.0,95304.0,0.33763304]
[1745955976790,0.3223354,95305.0,95304.0,0.33763304]
[1745955976979,0.3535354,95305.0,95304.0,0.33763304]
[1745955977488,0.3565354,95305.0,95304.0,0.33763304]
[1745955977686,0.3595354,95305.0,95304.0,0.33763304]
[1745955980094,0.3595354,95305.0,95304.0,0.12785394]
[1745955980791,0.3595354,95305.0,95304.0,0.33763524]
[1745955981188,0.3595354,95305.0,95304.0,0.12785394]
[1745955981696,0.3595354,95305.0,95304.0,0.33763524]
[1745955984292,0.3595354,95305.0,95304.0,0.12785394]
[1745955985198,0.3595354,95305.0,95304.0,0.33763524]
[1745955988598,0.3595354,95305.0,95304.0,0.12785394]
[1745955999092,0.3595354,95305.0,95304.0,0.00785394]
[1745955999300,0.2097923,95299.0,95298.0,0.0312]
[1745955999494,0.2097945,95298.0,95297.0,0.21171104]
[1745955999805,0.2622508,95297.0,95296.0,0.2097971]
[1745956000103,0.2098011,95295.0,95294.0,0.2098019]
[1745956000698,0.2729011,95295.0,95294.0,0.2098019]
[1745956001204,0.2739011,95295.0,95294.0,0.3298019]
[1745956001804,0.2739011,95295.0,95294.0,0.12]
[1745956002002,0.2739011,95295.0,95294.0,0.3298033]
[1745956002204,0.2739011,95295.0,95294.0,0.12]
[1745956002898,0.2739011,95295.0,95294.0,0.1824]
[1745956003502,0.2428011,95295.0,95294.0,0.1903475]
[1745956003721,0.2438011,95295.0,95294.0,0.4001508]
[1745956003906,0.002,95295.0,95294.0,0.4001508]
[1745956004106,0.2118011,95295.0,95294.0,0.4001508]
[1745956005711,0.2118011,95295.0,95294.0,0.7609508]
[1745956010109,0.002,95295.0,95294.0,0.7609508]
[1745956011809,0.2118011,95295.0,95294.0,0.7609508]
[1745956012109,0.002,95295.0,95294.0,0.7609508]
[1745956015105,0.2118011,95295.0,95294.0,0.7609508]
[1745956015812,0.2118011,95295.0,95294.0,0.8244308]
[1745956016010,0.2118011,95295.0,95294.0,0.7609508]
[1745956016208,0.2118011,95295.0,95294.0,0.8244308]
[1745956020813,0.2438011,95295.0,95294.0,0.8244308]
[1745956022108,0.002,95295.0,95294.0,0.8244308]
[1745956022415,0.4144,95342.0,95314.0,0.2097593]
[1745956022633,0.0302,95322.0,95321.0,0.2097439]
[1745956022806,0.0302,95341.0,95334.0,0.2097153]
[1745956023014,0.0326,95345.0,95334.0,0.60502686]
[1745956023317,0.15994773,95342.0,95341.0,0.2096999]
[1745956024118,0.36964543,95342.0,95341.0,0.3931799]
[1745956024322,0.15994773,95342.0,95341.0,0.3931799]
[1745956024616,0.36964543,95342.0,95341.0,0.3931799]
[1745956025010,0.37164543,95342.0,95341.0,0.3931799]
[1745956025211,0.16194773,95342.0,95341.0,0.3931799]
[1745956025417,0.16394773,95342.0,95341.0,0.3931799]
[1745956025810,0.22924773,95342.0,95341.0,0.3931799]
[1745956026413,0.43894543,95342.0,95341.0,0.3931799]
[1745956028010,0.0693,95342.0,95341.0,0.3931799]
[1745956028211,0.2789977,95342.0,95341.0,0.3931799]
[1745956032426,0.0693,95342.0,95341.0,0.3931799]
[1745956033523,0.2789977,95342.0,95341.0,0.3931799]
[1745956034728,0.2789977,95342.0,95341.0,0.4264799]
[1745956036929,0.0693,95342.0,95341.0,0.4264799]
[1745956037119,0.0363,95342.0,95341.0,0.4264799]
[1745956037530,0.2459977,95342.0,95341.0,0.4585799]
[1745956037728,0.0363,95342.0,95341.0,0.4585799]
[1745956037919,0.001,95346.0,95345.0,0.2096911]
[1745956038119,0.001,95346.0,95345.0,0.3296911]
[1745956038525,0.2106889,95346.0,95345.0,0.3296911]
[1745956039126,0.2106889,95346.0,95345.0,0.6904911]
[1745956039323,0.0524166,95357.0,95356.0,0.2096625]
[1745956039519,0.0524166,95357.0,95356.0,0.5704625]
[1745956039730,0.2620898,95357.0,95356.0,0.6343425]
[1745956039931,0.2620898,95357.0,95356.0,0.42468]
[1745956040126,0.2096732,95357.0,95356.0,0.7543469]
[1745956040329,0.2136732,95357.0,95356.0,0.7543469]
[1745956040627,0.2186732,95357.0,95356.0,0.54568]
[1745956040827,0.2186732,95357.0,95356.0,0.55336013]
[1745956041027,0.2508732,95357.0,95356.0,0.55336013]
[1745956041220,0.2508732,95357.0,95356.0,0.76302703]
[1745956042330,0.2508732,95357.0,95356.0,0.55336013]
[1745956042530,0.2508732,95357.0,95356.0,0.76302703]
[1745956042719,0.2508732,95357.0,95356.0,0.55336013]
[1745956043128,0.2508732,95357.0,95356.0,0.76302703]
[1745956044833,0.2508732,95357.0,95356.0,0.79392703]
[1745956045231,0.2508732,95357.0,95356.0,0.82442703]
[1745956047221,0.2508732,95357.0,95356.0,0.61476013]
[1745956047826,0.2508732,95357.0,95356.0,0.82442703]
[1745956051040,0.009,95357.0,95356.0,0.82442703]
[1745956051450,0.0311,95365.0,95363.0,0.2096493]
[1745956051750,0.2096501,95364.0,95363.0,0.2096493]
[1745956052452,0.2096501,95364.0,95363.0,0.3296493]
[1745956053336,0.2096501,95364.0,95363.0,0.3296515]
[1745956053538,0.2106501,95364.0,95363.0,0.12]
[1745956055138,0.2106501,95364.0,95356.0,0.46326013]
[1745956055139,0.2096647,95358.0,95357.0,0.2096645]
[1745956055562,0.2424647,95358.0,95357.0,0.2096645]
[1745956056050,0.2096647,95357.0,95356.0,0.43236013]
[1745956056740,0.2399647,95357.0,95356.0,0.43236013]
[1745956057238,0.6007647,95357.0,95356.0,0.00968013]
[1745956058236,0.6007647,95357.0,95356.0,0.01068013]
[1745956060752,0.2096779,95351.0,95350.0,0.12823085]
[1745956061144,0.2096801,95350.0,95349.0,0.15970753]
[1745956061343,0.3270006,95350.0,95349.0,0.2096823]
[1745956061750,0.2096845,95348.0,95347.0,0.06548]
[1745956062152,0.2096845,95348.0,95347.0,0.3951667]
[1745956063347,0.2745814,95350.0,95349.0,0.2096823]
[1745956064148,0.2745814,95350.0,95349.0,0.3608823]
[1745956064437,0.2745814,95350.0,95349.0,0.3618823]
[1745956065048,0.2745814,95350.0,95349.0,0.36980053]
[1745956065251,0.2745814,95350.0,95349.0,0.37180053]
[1745956067252,0.2745814,95350.0,95349.0,0.16211823]
[1745956067753,0.2745814,95350.0,95349.0,0.13091823]
[1745956068254,0.2745814,95350.0,95349.0,0.01091823]
[1745956069458,0.2745814,95350.0,95349.0,0.00991823]
[1745956069648,0.2745814,95350.0,95349.0,0.01091823]
[1745956069854,0.0524227,95346.0,95343.0,0.08697959]
[1745956070154,0.2734933,95345.0,95344.0,0.3296933]
[1745956070946,0.2734933,95345.0,95344.0,0.33774756]
[1745956071346,0.2734933,95345.0,95344.0,0.34074756]
[1745956072057,0.2734933,95345.0,95344.0,0.13105426]
[1745956072741,0.2734933,95345.0,95344.0,0.34074756]
[1745956072959,0.2734933,95345.0,95344.0,0.34274756]
[1745956073155,0.2734933,95345.0,95344.0,0.37524756]
[1745956078260,0.7391773,95345.0,95344.0,0.13305426]
[1745956079251,0.7391773,95345.0,95344.0,0.01305426]
[1745956079453,0.7391773,95345.0,95344.0,0.01005426]
[1745956079653,0.7391773,95345.0,95344.0,0.00805426]
[1745956079965,0.2096955,95343.0,95342.0,0.00157328]
[1745956080464,0.3145795,95343.0,95342.0,0.00937726]
[1745956081052,0.5704955,95343.0,95342.0,0.00937726]
[1745956083274,0.5704955,95343.0,95342.0,0.12937726]
[1745956084176,0.5704955,95343.0,95342.0,0.00937726]
[1745956089281,0.5704955,95343.0,95342.0,0.12937726]
[1745956089475,0.5714955,95343.0,95342.0,0.12937726]
[1745956090377,0.2106955,95343.0,95342.0,0.12937726]
[1745956090572,0.5714955,95343.0,95342.0,0.12937726]
[1745956091568,0.6763795,95343.0,95342.0,0.12937726]
[1745956092278,0.6763795,95343.0,95342.0,0.00937726]
[1745956101072,0.6763795,95343.0,95342.0,0.12937726]
[1745956102081,0.6763795,95343.0,95342.0,0.00937726]
[1745956104079,0.5714955,95343.0,95342.0,0.00937726]
[1745956104283,0.5714955,95343.0,95342.0,0.12937726]
[1745956105082,0.2106955,95343.0,95342.0,0.12937726]
[1745956105282,0.5714955,95343.0,95342.0,0.12937726]
[1745956105580,0.2106955,95343.0,95342.0,0.12937726]
[1745956105784,0.5714955,95343.0,95342.0,0.12937726]
[1745956106676,0.6357955,95343.0,95342.0,0.12937726]
[1745956109972,0.2749955,95343.0,95342.0,0.12937726]
[1745956110194,0.6357955,95343.0,95342.0,0.12937726]
[1745956111789,0.5714955,95343.0,95342.0,0.12937726]
[1745956112087,0.2106955,95343.0,95342.0,0.12937726]
[1745956113482,0.2106955,95343.0,95342.0,0.16067726]
[1745956114484,0.2106955,95343.0,95342.0,0.16167726]
[1745956114684,0.2096955,95343.0,95342.0,0.16367726]
[1745956121485,0.2096955,95343.0,95342.0,0.16167726]
[1745956121690,0.2400955,95343.0,95342.0,0.16267726]
[1745956122095,0.2400955,95343.0,95342.0,0.16167726]
[1745956122281,0.2704955,95343.0,95342.0,0.16267726]
[1745956123586,0.2704955,95343.0,95342.0,0.16167726]
[1745956123891,0.6312955,95343.0,95342.0,0.16067726]
[1745956124091,0.6312955,95343.0,95336.0,0.00157309]
[1745956124092,0.052426,95340.0,95336.0,0.00157309]
[1745956124293,0.2097087,95337.0,95336.0,0.0095216]
[1745956125995,0.2733087,95337.0,95336.0,0.0095216]
[1745956126483,0.29912475,95337.0,95336.0,0.0095216]
[1745956126683,0.2733087,95337.0,95336.0,0.0095216]
[1745956127993,0.6341087,95337.0,95336.0,0.0095216]
[1745956130203,0.6341087,95337.0,95336.0,0.1295216]
[1745956136607,0.6351087,95337.0,95336.0,0.1295216]
[1745956136996,0.6341087,95337.0,95336.0,0.1295216]
[1745956137192,0.6361087,95337.0,95336.0,0.1295216]
[1745956144600,0.2753087,95337.0,95336.0,0.1295216]
[1745956144906,0.6361087,95337.0,95336.0,0.1295216]
[1745956146605,0.2753087,95337.0,95336.0,0.1295216]
[1745956146908,0.6361087,95337.0,95336.0,0.1295216]
[1745956148109,0.2097395,95323.0,95322.0,0.0311]
[1745956149119,0.2097395,95323.0,95322.0,0.1511]
[1745956149604,0.2097395,95323.0,95322.0,0.1531]
[1745956150203,0.2097395,95323.0,95322.0,0.1551]
[1745956150807,0.2097395,95323.0,95322.0,0.16280971]
[1745956161415,0.0524321,95328.0,95326.0,0.2097307]
[1745956161602,0.26216,95332.0,95331.0,0.2621432]
[1745956161808,0.26216,95332.0,95331.0,0.3145734]
[1745956162202,0.26216,95332.0,95331.0,0.4345734]
[1745956166219,0.3145674,95338.0,95337.0,0.2097087]
[1745956166813,0.3145674,95338.0,95337.0,0.2410087]
[1745956167019,0.3145674,95338.0,95337.0,0.3049087]
[1745956167318,0.3145674,95338.0,95337.0,0.4249087]
[1745956167502,0.3165674,95338.0,95337.0,0.4249087]
[1745956169019,0.3165674,95338.0,95337.0,0.7857087]
[1745956169224,0.08000017,95351.0,95350.0,0.2096801]
[1745956169519,0.13303928,95367.0,95366.0,0.2096449]
[1745956169818,0.3608,95387.0,95375.0,0.2096251]
[1745956170013,0.0524048,95378.0,95375.0,0.2096251]
[1745956170215,0.0523997,95387.0,95377.0,0.0524051]
[1745956170404,0.209613,95384.0,95383.0,0.2620017]
[1745956171114,0.209613,95384.0,95383.0,0.12]
[1745956171722,0.209613,95384.0,95383.0,0.12787994]
[1745956172224,0.209613,95384.0,95383.0,0.15887994]
[1745956172425,0.209613,95384.0,95383.0,0.40098744]
[1745956172719,0.209613,95384.0,95383.0,0.19137994]
[1745956172922,0.210613,95384.0,95383.0,0.19137994]
[1745956173718,0.210613,95384.0,95383.0,0.40098744]
[1745956173920,0.212613,95384.0,95383.0,0.76178744]
[1745956174725,0.212613,95384.0,95383.0,0.55217994]
[1745956175823,0.212613,95384.0,95383.0,0.76178744]
[1745956176820,0.03,95391.0,95390.0,0.2095921]
[1745956177020,0.0523966,95393.0,95392.0,0.2619798]
[1745956177226,0.0523966,95393.0,95392.0,0.3244798]
[1745956177423,0.2095942,95393.0,95392.0,0.3244798]
[1745956178215,0.2095942,95393.0,95392.0,0.4444798]
[1745956178609,0.2125942,95393.0,95392.0,0.4444798]
[1745956179517,0.2145942,95393.0,95392.0,0.4444798]
[1745956180422,0.2125942,95393.0,95392.0,0.4444798]
[1745956180621,0.2095942,95393.0,95392.0,0.4484798]
[1745956180825,0.2095942,95393.0,95392.0,0.46381497]
[1745956181011,0.2095942,95393.0,95392.0,0.41141857]
[1745956181712,0.2095942,95393.0,95392.0,0.3960834]
[1745956183912,0.2095942,95393.0,95392.0,0.124]
[1745956184117,0.6010942,95393.0,95392.0,0.124]
[1745956184311,0.6322942,95393.0,95392.0,0.004]
[1745956186120,0.6322942,95393.0,95392.0,0.003]
[1745956187324,0.6322942,95393.0,95392.0,0.002]
[1745956200232,0.2402942,95393.0,95392.0,0.001]
[1745956200425,0.2095942,95393.0,95392.0,0.2105878]
[1745956200623,0.2402852,95394.0,95393.0,0.2095856]
[1745956200833,0.2402852,95394.0,95393.0,0.61630011]
[1745956201028,0.2402852,95394.0,95393.0,0.64820011]
[1745956201232,0.6010852,95394.0,95393.0,0.19781451]
[1745956201433,0.6010852,95394.0,95393.0,0.13561451]
[1745956201434,0.6318852,95394.0,95393.0,0.13561451]
[1745956201925,0.6318852,95394.0,95393.0,0.16744626]
[1745956202124,0.6318852,95394.0,95393.0,0.19944626]
[1745956202431,0.6010852,95394.0,95393.0,0.40903186]
[1745956203330,0.2402852,95394.0,95393.0,0.41003186]
[1745956203536,0.2402852,95394.0,95393.0,0.41103186]
[1745956204236,0.2402852,95394.0,95393.0,0.41203186]
[1745956208231,0.2731852,95394.0,95393.0,0.41203186]
[1745956208830,0.2731852,95394.0,95393.0,0.3964856]
[1745956211122,0.2731852,95394.0,95393.0,0.2764856]
[1745956211538,0.2731852,95394.0,95393.0,0.003]
[1745956211724,0.6339852,95394.0,95393.0,0.003]
[1745956212727,0.6339852,95394.0,95393.0,0.2125856]
[1745956212927,0.6339852,95394.0,95393.0,0.003]
[1745956214840,0.6339852,95394.0,95393.0,0.002]
[1745956215041,0.6339852,95394.0,95393.0,0.003]
[1745956215341,0.2096031,95385.0,95384.0,0.00790519]
[1745956216039,0.2745031,95385.0,95384.0,0.00790519]
[1745956216238,0.3945031,95385.0,95384.0,0.00790519]
[1745956216438,0.3945031,95385.0,95384.0,0.01090519]
[1745956218440,0.3945031,95385.0,95384.0,0.04580519]
[1745956219230,0.3945031,95385.0,95384.0,0.28561049]
[1745956219434,0.12,95385.0,95384.0,0.28561049]
[1745956219634,0.3296031,95385.0,95384.0,0.2777053]
[1745956219934,0.3296031,95385.0,95384.0,0.29319187]
[1745956220134,0.2096031,95385.0,95384.0,0.29319187]
[1745956220539,0.2401031,95385.0,95384.0,0.2777053]
[1745956220849,0.2401031,95385.0,95384.0,0.29319197]
[1745956221044,0.2401031,95385.0,95384.0,0.05338667]
[1745956221240,0.3905031,95385.0,95384.0,0.02048667]
[1745956221840,0.3905031,95385.0,95384.0,0.05148667]
[1745956222035,0.3905031,95385.0,95384.0,0.036]
[1745956222543,0.3905031,95385.0,95384.0,0.0687]
[1745956223843,0.3905031,95385.0,95384.0,0.0677]
[1745956226945,0.3905031,95385.0,95384.0,0.2773053]
[1745956227146,0.3905031,95385.0,95384.0,0.2753053]
[1745956227350,0.3905031,95385.0,95384.0,0.2773053]
[1745956227541,0.3601031,95385.0,95384.0,0.2773053]
[1745956227942,0.3601031,95385.0,95384.0,0.29278446]
[1745956228156,0.3601031,95385.0,95384.0,0.29278482]
[1745956229654,0.3601031,95385.0,95384.0,0.08317952]
[1745956233150,0.3601031,95385.0,95384.0,0.08332505]
[1745956233853,0.3601031,95385.0,95384.0,0.08332444]
[1745956237446,0.3601031,95385.0,95384.0,0.0677]
[1745956237756,0.3601031,95385.0,95384.0,0.01958238]
[1745956238657,0.4649431,95385.0,95384.0,0.01958238]
[1745956240154,0.4649431,95385.0,95384.0,0.004]
[1745956241758,0.4649431,95385.0,95384.0,0.002]
[1745956242066,0.2096053,95384.0,95383.0,0.00787994]
[1745956242362,0.2096295,95373.0,95372.0,0.21300514]
[1745956242861,0.2096295,95373.0,95370.0,0.0302]
[1745956242862,0.2096339,95371.0,95370.0,0.0302]
[1745956243060,0.3296339,95371.0,95370.0,0.0302]
[1745956243561,0.3920339,95371.0,95370.0,0.0302]
[1745956244963,0.3920339,95371.0,95370.0,0.0322]
[1745956245161,0.3920339,95371.0,95370.0,0.0342]
[1745956245463,0.3920339,95371.0,95370.0,0.04207287]
[1745956249754,0.3920339,95371.0,95370.0,0.01187287]
[1745956251257,0.3920339,95371.0,95370.0,0.00987287]
[1745956257761,0.3920339,95371.0,95370.0,0.00887287]
[1745956258058,0.3920339,95371.0,95370.0,0.00987287]
[1745956259159,0.3612339,95371.0,95370.0,0.00987287]
[1745956260158,0.3612339,95371.0,95370.0,0.07217287]
[1745956264366,0.3612339,95371.0,95370.0,0.04097287]
[1745956264970,0.3612339,95371.0,95370.0,0.01187287]
[1745956265376,0.3612339,95371.0,95370.0,0.00987287]
[1745956265575,0.3612339,95371.0,95370.0,0.01087287]
[1745956266379,0.3612339,95371.0,95370.0,0.00887287]
[1745956268278,0.3612339,95371.0,95370.0,0.00787287]
[1745956268468,0.2096515,95363.0,95362.0,0.0303]
[1745956268670,0.2096515,95363.0,95362.0,0.0949]
[1745956269169,0.3296515,95363.0,95362.0,0.0949]
[1745956269765,0.2096757,95352.0,95341.0,0.62824373]
[1745956269967,0.2096757,95352.0,95347.0,0.0318]
[1745956270278,0.3296757,95352.0,95347.0,0.0318]
[1745956270981,0.3296757,95352.0,95351.0,0.21700514]
[1745956271179,0.3600757,95352.0,95351.0,0.21700514]
[1745956271479,0.3600757,95352.0,95351.0,0.22100514]
[1745956271684,0.3919757,95352.0,95351.0,0.22100514]
[1745956272080,0.3919757,95352.0,95351.0,0.21700514]
[1745956272576,0.3919757,95352.0,95351.0,0.004]
[1745956272777,0.2096801,95350.0,95348.0,0.08299074]
[1745956272977,0.2096801,95350.0,95349.0,0.3934]
[1745956273282,0.3296801,95350.0,95349.0,0.3934]
[1745956274574,0.3296801,95350.0,95349.0,0.3954]
[1745956275568,0.3296801,95350.0,95349.0,0.6050823]
[1745956275770,0.12,95350.0,95349.0,0.7178872]
[1745956275969,0.2096801,95353.0,95352.0,0.2620869]
[1745956276184,0.2096801,95353.0,95352.0,0.3145053]
[1745956276484,0.2096801,95353.0,95352.0,0.4193813]
[1745956278772,0.2096801,95353.0,95352.0,0.4243813]
[1745956279472,0.2106801,95353.0,95352.0,0.4933413]
[1745956280381,0.2096801,95353.0,95352.0,0.4923413]
[1745956280783,0.2096671,95356.0,95355.0,0.2096669]
[1745956280977,0.0327,95362.0,95356.0,0.0524165]
[1745956281282,0.2947588,95365.0,95364.0,0.2096471]
[1745956282174,0.2096493,95364.0,95363.0,0.2398504]
[1745956282371,0.2096493,95364.0,95363.0,0.0302]
[1745956282570,0.2397493,95364.0,95363.0,0.0302]
[1745956282975,0.2397493,95364.0,95363.0,0.2398515]
[1745956283270,0.3597493,95364.0,95363.0,0.2398515]
[1745956283485,0.3597493,95364.0,95363.0,0.2428515]
[1745956284078,0.3597493,95364.0,95363.0,0.2418515]
[1745956284287,0.3597493,95364.0,95363.0,0.2438515]
[1745956284678,0.3597493,95364.0,95363.0,0.2418515]
[1745956284884,0.3597493,95364.0,95363.0,0.2438515]
[1745956285682,0.3597493,95364.0,95363.0,0.2448515]
[1745956286382,0.3597493,95364.0,95363.0,0.2418515]
[1745956286587,0.3597493,95364.0,95363.0,0.2448515]
[1745956287089,0.3597493,95364.0,95363.0,0.2418515]
[1745956287289,0.3597493,95364.0,95363.0,0.2448515]
[1745956288283,0.3597493,95364.0,95363.0,0.0352]
[1745956288484,0.3923493,95364.0,95363.0,0.0352]
[1745956288991,0.3923493,95364.0,95363.0,0.0332]
[1745956289194,0.3923493,95364.0,95363.0,0.005]
[1745956291898,0.2096625,95358.0,95357.0,0.0967]
[1745956292092,0.2096625,95358.0,95357.0,0.3063647]
[1745956292298,0.3296625,95358.0,95357.0,0.3063647]
[1745956292786,0.3610625,95358.0,95357.0,0.3063647]
[1745956292988,0.3939625,95358.0,95357.0,0.3063647]
[1745956293188,0.3939625,95358.0,95357.0,0.3083647]
[1745956293501,0.3939625,95358.0,95357.0,0.3103647]
[1745956294799,0.3610625,95358.0,95357.0,0.3103647]
[1745956296600,0.3610625,95358.0,95357.0,0.3113647]
[1745956296797,0.3610625,95358.0,95357.0,0.3123647]
[1745956298199,0.3610625,95358.0,95357.0,0.3113647]
[1745956300700,0.3610625,95358.0,95357.0,0.3093647]
[1745956300891,0.3610625,95358.0,95357.0,0.3113647]
[1745956301092,0.3610625,95358.0,95357.0,0.2782647]
[1745956301296,0.3610625,95358.0,95357.0,0.0666]
[1745956301597,0.3610625,95358.0,95357.0,0.005]
[1745956302497,0.3610625,95358.0,95357.0,0.002]
[1745956302703,0.3610625,95358.0,95357.0,0.004]
[1745956303396,0.7218625,95358.0,95357.0,0.003]
[1745956303991,0.7218625,95358.0,95357.0,0.002]
[1745956304503,0.2096845,95348.0,95347.0,0.16149142]
[1745956305186,0.3296845,95348.0,95347.0,0.16149142]
[1745956305404,0.3920845,95348.0,95347.0,0.16149142]
[1745956305603,0.3920845,95348.0,95347.0,0.06596]
[1745956306102,0.3920845,95348.0,95347.0,0.002]
[1745956307098,0.3920845,95348.0,95347.0,0.004]
[1745956307494,0.3920845,95348.0,95347.0,0.01167057]
[1745956307689,0.3920845,95348.0,95347.0,0.003]
[1745956307902,0.3920845,95348.0,95347.0,0.002]
[1745956308695,0.7528845,95348.0,95347.0,0.002]
[1745956311901,0.7528845,95348.0,95347.0,0.00976099]
[1745956316608,0.7528845,95348.0,95347.0,0.04036099]
[1745956318816,0.3920845,95348.0,95347.0,0.04036099]
[1745956320410,0.12,95348.0,95347.0,0.28044769]
[1745956320607,0.2096581,95361.0,95360.0,0.3668893]
[1745956320808,0.2096581,95361.0,95360.0,0.3144751]
[1745956321114,0.3296581,95361.0,95360.0,0.3144751]
[1745956321313,0.3296581,95361.0,95360.0,0.2096493]
[1745956321906,0.3316581,95361.0,95360.0,0.2096493]
[1745956322105,0.3316581,95361.0,95360.0,0.2745493]
[1745956322312,0.3336581,95361.0,95360.0,0.2745493]
[1745956323414,0.3296581,95361.0,95360.0,0.2785493]
[1745956324020,0.3296581,95361.0,95360.0,0.004]
[1745956324211,0.3946581,95361.0,95360.0,0.002]
[1745956324518,0.3946581,95361.0,95360.0,0.004]
[1745956325917,0.3946581,95361.0,95360.0,0.002]
[1745956326113,0.2096669,95356.0,95355.0,0.209669]
[1745956326813,0.2096669,95356.0,95354.0,0.0306]
[1745956327119,0.2724691,95355.0,95354.0,0.0306]
[1745956328319,0.3924691,95355.0,95354.0,0.0306]
[1745956329112,0.3924691,95355.0,95354.0,0.0316]
[1745956329409,0.3924691,95355.0,95354.0,0.0326]
[1745956330010,0.3924691,95355.0,95354.0,0.0316]
[1745956330216,0.3924691,95355.0,95354.0,0.0326]
[1745956332520,0.3924691,95355.0,95354.0,0.002]
[1745956334612,0.3924691,95355.0,95354.0,0.001]
[1745956334912,0.3924691,95355.0,95354.0,0.002]
[1745956335222,0.3924691,95355.0,95354.0,0.001]
[1745956335417,0.3924691,95355.0,95354.0,0.002]
[1745956335818,0.2096801,95350.0,95349.0,0.0321]
[1745956336120,0.2096801,95350.0,95349.0,0.0622]
[1745956337221,0.3296801,95350.0,95349.0,0.0622]
[1745956337421,0.3296801,95350.0,95349.0,0.0642]
[1745956337623,0.3296801,95350.0,95349.0,0.0662]
[1745956343126,0.3296801,95350.0,95349.0,0.0642]
[1745956343425,0.3598801,95350.0,95349.0,0.0662]
[1745956344220,0.3598801,95350.0,95349.0,0.0642]
[1745956344421,0.3598801,95350.0,95349.0,0.0662]
[1745956345225,0.3598801,95350.0,95349.0,0.2758823]
[1745956345621,0.3598801,95350.0,95349.0,0.0341]
[1745956345822,0.3598801,95350.0,95349.0,0.004]
[1745956346022,0.3905801,95350.0,95349.0,0.004]
[1745956347020,0.3905801,95350.0,95349.0,0.0333]
[1745956347425,0.3905801,95350.0,95349.0,0.0323]
[1745956347627,0.3905801,95350.0,95349.0,0.0313]
[1745956347828,0.3905801,95350.0,95349.0,0.0333]
[1745956348326,0.3905801,95350.0,95349.0,0.0343]
[1745956348723,0.3905801,95350.0,95349.0,0.004]
[1745956349414,0.2096845,95348.0,95347.0,0.00776099]
[1745956349620,0.2096845,95348.0,95345.0,0.00104882]
[1745956349621,0.2096889,95346.0,95345.0,0.00104882]
[1745956350222,0.3910889,95346.0,95345.0,0.00104882]
[1745956350828,0.3910889,95346.0,95345.0,0.00304882]
[1745956351131,0.3910889,95346.0,95345.0,0.01077398]
[1745956351426,0.3910889,95346.0,95345.0,0.00404882]
[1745956355324,0.3910889,95346.0,95345.0,0.01197605]
[1745956355730,0.0524299,95333.0,95320.0,0.26744373]
[1745956355931,0.53628,95346.0,95320.0,0.26744373]
[1745956355932,0.2097439,95321.0,95320.0,0.26744373]
[1745956356134,0.3297439,95321.0,95320.0,0.26744373]
[1745956356322,0.3297439,95321.0,95320.0,0.27549126]
[1745956356822,0.3957439,95321.0,95320.0,0.27549126]
[1745956357026,0.3957439,95321.0,95320.0,0.28249126]
[1745956357534,0.3957439,95321.0,95320.0,0.02104753]
[1745956358929,0.3957439,95321.0,95320.0,0.02004753]
[1745956359124,0.3967439,95321.0,95320.0,0.02004753]
[1745956360234,0.3957439,95321.0,95320.0,0.01404753]
[1745956360431,0.3967439,95321.0,95320.0,0.01204753]
[1745956360632,0.3967439,95321.0,95320.0,0.01604753]
[1745956360828,0.2097549,95316.0,95315.0,0.00104915]
[1745956361731,0.2702549,95316.0,95315.0,0.00104915]
[1745956362130,0.3902549,95316.0,95315.0,0.00504915]
[1745956363134,0.3912549,95316.0,95315.0,0.01004915]
[1745956364732,0.3912549,95316.0,95315.0,0.01793574]
[1745956366843,0.3307549,95316.0,95315.0,0.22769284]
[1745956367236,0.2107549,95316.0,95315.0,0.22769284]
[1745956367544,0.001,95316.0,95315.0,0.33260884]